bitfinex-derivatives/quotes_SOLF0:USTF0_20241216
["timestamp","ask_amount","ask_price","bid_price","bid_amount"]
[1734370289189,2.2731,219.93,219.88,5.52967041]
[1734370290493,2.2731,219.93,219.9,2.2734]
[1734370290791,1.4834,219.95,219.84,2.4]
[1734370290988,2.2733,219.92,219.88,2.2736]
[1734370291389,2.2733,219.92,219.86,5.58910294]
[1734370291590,2.2731,219.93,219.89,2.2734]
[1734370291786,3.9992,219.94,219.86,5.58910294]
[1734370291986,3.9992,219.94,219.86,18.68742988]
[1734370292388,3.9992,219.94,219.92,2.2732]
[1734370292593,3.9992,219.94,219.86,18.68742988]
[1734370293092,3.9992,219.94,219.9,2.2733]
[1734370293292,3.9992,219.94,219.86,18.68742988]
[1734370293493,3.9992,219.94,219.88,2.2736]
[1734370293692,3.9992,219.94,219.86,5.58910294]
[1734370294094,6.2723,219.94,219.89,2.2734]
[1734370294393,3.9992,219.94,219.86,5.58910294]
[1734370295492,3.9992,219.94,219.88,2.2736]
[1734370296193,2.2733,219.91,219.88,2.2736]
[1734370296495,3.9992,219.94,219.88,2.2736]
[1734370296696,1.5992,219.94,219.86,5.58910294]
[1734370296885,12.07963765,219.95,219.87,13.09832694]
[1734370296886,1.4834,219.95,219.87,13.09832694]
[1734370297291,1.601,219.96,219.87,13.09832694]
[1734370297491,1.601,219.96,219.87,2.4]
[1734370297689,12.19723765,219.96,219.87,2.4]
[1734370298392,1.601,219.96,219.93,2.2731]
[1734370298795,10.68926912,219.97,219.87,15.49832694]
[1734370299094,253.0042597,219.98,219.9,13.09832694]
[1734370299999,2.2725,219.99,219.92,2.2732]
[1734370300195,2.2725,219.99,219.9,13.09832694]
[1734370300801,4.6725,219.99,219.9,13.09832694]
[1734370300994,2.4,219.99,219.9,13.09832694]
[1734370301301,15.49832694,219.99,219.92,2.2732]
[1734370301593,2.273,219.95,219.92,2.2732]
[1734370301795,2.273,219.95,219.86,5.58910294]
[1734370302002,13.09832694,219.96,219.86,5.58910294]
[1734370302197,2.2732,219.93,219.86,5.58910294]
[1734370302596,2.2732,219.93,219.9,2.2734]
[1734370302794,4.6731,219.94,219.9,2.2734]
[1734370303196,2.4,219.94,219.86,5.58910294]
[1734370303899,2.2732,219.93,219.89,2.2735]
[1734370304100,2.2732,219.93,219.86,5.58910294]
[1734370304494,2.273,219.95,219.86,5.58910294]
[1734370304693,2.4,219.94,219.86,5.58910294]
[1734370305104,4.6731,219.94,219.9,2.2734]
[1734370305295,2.2731,219.94,219.9,2.2734]
[1734370305494,4.6731,219.94,219.9,2.2734]
[1734370305801,4.6731,219.94,219.86,5.58910294]
[1734370306396,2.2731,219.94,219.86,5.58910294]
[1734370307002,2.2731,219.94,219.91,2.2733]
[1734370309504,15.49832694,219.96,219.91,2.2733]
[1734370309505,2.2729,219.95,219.91,2.2733]
[1734370310113,8.38959491,219.92,219.91,2.2733]
[1734370312708,8.38959491,219.92,219.89,2.2735]
[1734370313005,8.38959491,219.9,219.86,5.58910294]
[1734370313204,8.38959491,219.87,219.79,12.30189491]
[1734370313404,8.38959491,219.87,219.85,2.2739]
[1734370314001,8.38959491,219.87,219.79,9.90189491]
[1734370314206,8.38959491,219.85,219.83,2.2741]
[1734370314705,8.38959491,219.85,219.8,2.2745]
[1734370314901,8.38959491,219.81,219.8,2.2745]
[1734370315709,8.38959491,219.81,219.74,8.38959491]
[1734370316300,8.38959491,219.81,219.78,5.46025708]
[1734370316505,8.38959491,219.81,219.78,7.73485708]
[1734370318105,2.2743,219.82,219.78,7.73485708]
[1734370320005,13.12252002,219.84,219.78,5.46025708]
[1734370320306,1.6107,219.86,219.78,5.46025708]
[1734370320511,2.2741,219.85,219.78,5.46025708]
[1734370320701,1.6107,219.86,219.78,5.46025708]
[1734370322202,2.274,219.85,219.82,2.2743]
[1734370322511,14.68292002,219.87,219.78,5.46025708]
[1734370322811,16.95672002,219.87,219.83,2.2742]
[1734370323911,2.2739,219.85,219.82,2.2742]
[1734370324109,14.68292002,219.87,219.82,2.2742]
[1734370324608,14.68292002,219.87,219.8,2.2744]
[1734370324808,14.68292002,219.87,219.78,5.46025708]
[1734370325000,2.2741,219.84,219.81,2.2743]
[1734370325204,14.68292002,219.87,219.78,5.46025708]
[1734370325601,2.4,219.88,219.85,2.2739]
[1734370326207,2.2735,219.89,219.85,2.2739]
[1734370326711,1.4627,219.92,219.79,2.4]
[1734370327016,1.4627,219.92,219.79,4.0036]
[1734370327208,3.0584,219.96,219.81,13.12252002]
[1734370327209,16.18092002,219.96,219.81,13.12252002]
[1734370327506,2.4,219.95,219.82,1.6074]
[1734370327705,2.4,219.95,219.9,2.2733]
[1734370327907,2.4,219.95,219.84,15.52252002]
[1734370328414,2.273,219.94,219.84,15.52252002]
[1734370328714,38.0751429,219.96,219.87,13.12252002]
[1734370329209,1.5474,219.98,219.87,13.12252002]
[1734370329811,2.2729,219.96,219.87,13.12252002]
[1734370330507,2.2729,219.96,219.92,2.2732]
[1734370331109,2.2727,219.97,219.93,2.2731]
[1734370331804,3.82,219.98,219.93,2.2731]
[1734370332009,3.82,219.98,219.94,2.273]
[1734370332206,3.82,219.98,219.89,2.4]
[1734370332406,2.2727,219.97,219.89,2.4]
[1734370332806,2.2727,219.97,219.89,7.7751392]
[1734370334815,2.2727,219.97,219.92,2.2731]
[1734370335016,255.2769597,219.97,219.89,5.3751392]
[1734370335212,10.28634252,219.96,219.89,5.3751392]
[1734370335411,253.0042597,219.97,219.96,2.2728]
[1734370336215,15.52252002,220.03,219.9,1.5206]
[1734370336216,13.12252002,220.0,219.9,1.5206]
[1734370336819,253.0042597,220.03,219.9,14.64312002]
[1734370337016,10.28210598,220.02,219.9,14.64312002]
[1734370337420,10.28210598,220.02,219.91,2.4]
[1734370337617,13.12252002,220.01,219.91,2.4]
[1734370337913,15.39482002,220.01,219.95,2.2728]
[1734370338123,8.3857446,219.97,219.91,10.7857446]
[1734370338914,8.3857446,219.97,219.92,2.2731]
[1734370339218,8.3857446,219.97,219.91,10.7857446]
[1734370339615,8.3857446,219.97,219.96,2.2728]
[1734370339917,8.3857446,220.01,219.93,8.3857446]
[1734370340214,8.3857446,219.97,219.91,10.7857446]
[1734370340613,8.3857446,219.97,219.96,2.2728]
[1734370340815,8.3857446,219.97,219.91,2.4]
[1734370341011,8.3857446,219.97,219.92,2.4]
[1734370341218,8.3857446,219.99,219.92,2.4]
[1734370341411,8.3857446,219.97,219.96,2.2727]
[1734370342015,253.0042597,220.02,219.93,10.7857446]
[1734370342224,8.3857446,220.0,219.93,10.7857446]
[1734370342425,253.0042597,220.02,219.93,10.7857446]
[1734370342426,8.3857446,219.98,219.95,2.2729]
[1734370342721,8.3857446,219.98,219.93,10.7857446]
[1734370343220,4.6719,220.06,219.99,2.2725]
[1734370343417,8.3857446,220.0,219.95,8.3857446]
[1734370343815,8.3857446,220.0,219.99,2.2725]
[1734370344214,8.3857446,220.0,219.95,2.4]
[1734370344413,8.3857446,219.97,219.94,2.4]
[1734370344614,8.3857446,219.95,219.92,2.4]
[1734370344815,1.6058,220.05,219.92,2.4]
[1734370345014,8.3857446,220.0,219.95,2.2728]
[1734370345222,8.3857446,220.0,219.93,8.3857446]
[1734370345626,8.3857446,219.98,219.93,8.3857446]
[1734370345930,8.3857446,219.99,219.93,8.3857446]
[1734370346121,4.0058,220.05,219.93,8.3857446]
[1734370346426,2.2721,220.03,219.93,8.3857446]
[1734370346624,8.3857446,220.0,219.93,8.3857446]
[1734370346814,8.3857446,220.0,219.92,2.4]
[1734370347018,8.3857446,220.0,219.93,8.3857446]
[1734370347421,8.3857446,219.98,219.93,8.3857446]
[1734370348024,8.3857446,220.0,219.93,8.3857446]
[1734370349125,8.3857446,220.0,219.92,2.4]
[1734370349321,8.3857446,220.0,219.95,2.2729]
[1734370349623,8.3857446,220.0,219.93,8.3857446]
[1734370349827,8.3857446,219.98,219.93,8.3857446]
[1734370351424,8.3857446,219.98,219.97,2.2726]
[1734370351623,8.3857446,219.98,219.92,2.4]
[1734370352124,8.3857446,219.96,219.9,2.4]
[1734370352319,8.3857446,219.96,219.89,13.7608838]
[1734370352522,8.3857446,219.96,219.93,2.2731]
[1734370353018,8.3857446,219.96,219.89,16.1608838]
[1734370353214,8.3857446,219.94,219.89,7.7751392]
[1734370353621,2.2727,219.98,219.89,16.1608838]
[1734370353817,8.3857446,219.96,219.89,16.1608838]
[1734370355325,8.3857446,219.96,219.94,2.273]
[1734370355827,253.0042597,220.01,219.91,8.3857446]
[1734370356027,8.3857446,220.0,219.89,7.7751392]
[1734370356321,8.3857446,220.0,219.93,8.3857446]
[1734370357724,8.3857446,220.0,219.97,2.2727]
[1734370357922,8.3857446,220.0,219.93,8.3857446]
[1734370358921,8.3857446,219.98,219.96,2.2728]
[1734370359724,8.3857446,219.98,219.94,2.273]
[1734370359928,8.3857446,219.96,219.94,2.273]
[1734370360235,8.3857446,219.98,219.89,7.7751392]
[1734370360421,8.3857446,219.96,219.93,2.2731]
[1734370360818,8.3857446,219.96,219.91,2.2733]
[1734370360819,8.3857446,219.94,219.91,2.2733]
[1734370361527,10.6588446,219.94,219.9,2.2734]
[1734370361923,8.3857446,219.94,219.89,7.7751392]
[1734370362122,253.0042597,219.95,219.89,7.7751392]
[1734370362326,253.0042597,219.95,219.9,8.3857446]
[1734370362729,253.0042597,219.95,219.94,2.273]
[1734370362927,253.0042597,219.95,219.9,8.3857446]
[1734370363327,253.0042597,219.95,219.92,8.3857446]
[1734370363625,253.0042597,219.95,219.94,2.273]
[1734370363925,253.0042597,219.95,219.94,10.6587446]
[1734370364129,253.0042597,219.98,219.94,8.3857446]
[1734370364326,253.0042597,219.98,219.97,2.2727]
[1734370365232,2.2725,220.0,219.96,2.2728]
[1734370365427,261.3900043,220.01,219.96,2.2728]
[1734370365926,2.2724,220.0,219.96,2.2728]
[1734370366126,2.2724,220.0,219.94,8.3857446]
[1734370366321,255.2766597,220.0,219.97,2.2727]
[1734370367528,253.0042597,220.0,219.98,2.2726]
[1734370368635,255.2768597,219.99,219.95,2.2729]
[1734370369330,255.2768597,219.99,219.93,8.3857446]
[1734370369331,255.2768597,219.99,219.96,2.2728]
[1734370369832,263.6626043,219.99,219.96,2.2728]
[1734370371128,263.6626043,219.99,219.94,2.273]
[1734370371129,2.2727,219.98,219.94,2.273]
[1734370371432,8.3857446,219.98,219.91,10.7857446]
[1734370371635,6.57430338,219.98,219.91,10.7857446]
[1734370371845,14.96004798,219.98,219.91,10.7857446]
[1734370372135,267.96430768,219.98,219.91,10.7857446]
[1734370372334,6.57430338,219.97,219.91,10.7857446]
[1734370372535,2.2729,219.96,219.93,2.2731]
[1734370372739,2.2729,219.96,219.91,8.3857446]
[1734370373329,253.0042597,219.94,219.91,8.3857446]
[1734370373538,253.0042597,219.94,219.93,2.2731]
[1734370374938,259.58289196,219.94,219.89,13.7608838]
[1734370375130,253.0042597,219.94,219.89,13.7608838]
[1734370375531,293.3451176,219.93,219.88,8.3857446]
[1734370376439,291.0719176,219.93,219.89,2.2735]
[1734370376739,253.0042597,219.92,219.89,8.3857446]
[1734370377540,253.0042597,219.92,219.91,8.3857446]
[1734370377739,291.0719176,219.93,219.91,8.3857446]
[1734370378243,291.0719176,219.93,219.92,2.2732]
[1734370378838,38.0676579,219.93,219.92,2.2732]
[1734370379037,38.0676579,219.93,219.92,10.6589446]
[1734370379541,38.0676579,219.93,219.92,2.2732]
[1734370381350,261.3900043,220.01,219.91,8.3857446]
[1734370381550,253.0042597,220.01,220.0,8.3857446]
[1734370381846,253.0042597,220.05,220.0,10.7857446]
[1734370382042,253.0042597,220.05,220.03,8.3857446]
[1734370382644,253.0042597,220.05,220.04,2.272]
[1734370382840,261.3900043,220.11,220.04,2.272]
[1734370383045,2.2715,220.09,220.04,2.272]
[1734370383740,2.2717,220.08,220.03,8.3857446]
[1734370384342,264.6020043,220.1,220.03,8.3857446]
[1734370384640,264.6020043,220.1,220.04,2.272]
[1734370385037,11.5977446,220.1,220.04,2.272]
[1734370385244,11.5977446,220.1,220.05,2.2719]
[1734370385442,2.2716,220.09,220.01,2.4]
[1734370385645,2.2716,220.09,220.03,8.3857446]
[1734370386447,264.6020043,220.1,220.0,2.4]
[1734370386448,8.3857446,220.06,220.0,2.4]
[1734370386641,8.3857446,220.06,219.9,4.6473]
[1734370386642,8.3857446,220.06,219.99,8.3857446]
[1734370386843,9.9920446,220.08,220.01,8.3857446]
[1734370387343,253.0042597,220.04,220.01,3.33733008]
[1734370387547,253.0042597,220.04,220.03,8.3857446]
[1734370387748,253.0042597,220.04,220.01,8.3857446]
[1734370388345,253.0042597,220.04,220.03,2.2721]
[1734370389649,253.0042597,220.05,220.03,2.2721]
[1734370389842,253.0042597,220.05,220.03,8.3857446]
[1734370390044,253.0042597,220.05,220.04,4.672]
[1734370390848,254.6901471,220.08,220.06,2.2718]
[1734370391448,9.94701756,220.07,220.04,1.89464903]
[1734370391652,253.0042597,220.09,220.05,8.3857446]
[1734370391946,262.94947939,220.08,220.05,8.3857446]
[1734370392152,253.0042597,220.08,220.05,8.3857446]
[1734370392851,253.0042597,220.08,220.07,2.2717]
[1734370393349,253.0042597,220.09,220.07,2.2717]
[1734370393652,9.93977202,220.08,220.07,2.2717]
[1734370394453,253.0042597,220.09,220.07,2.2717]
[1734370395052,8.3857446,220.08,220.04,2.4]
[1734370395446,253.0042597,220.09,220.04,2.4]
[1734370396251,11.5977446,220.1,220.04,2.4]
[1734370396650,11.5977446,220.1,220.06,2.2717]
[1734370397648,11.5977446,220.1,220.07,2.2717]
[1734370398050,11.5977446,220.1,220.01,5.41476472]
[1734370398351,2.2715,220.09,220.05,2.2718]
[1734370398751,2.2715,220.09,220.06,2.2718]
[1734370399450,13.8691446,220.1,220.06,2.2718]
[1734370400454,11.5977446,220.1,220.06,2.2718]
[1734370400656,11.5977446,220.1,220.01,5.41476472]
[1734370400849,8.3857446,220.08,220.02,2.4]
[1734370401557,8.3857446,220.06,220.03,2.2721]
[1734370404556,8.3857446,220.06,220.01,5.41476472]
[1734370405258,8.3857446,220.06,220.03,2.2721]
[1734370405759,8.3857446,220.05,220.03,2.2721]
[1734370408257,2.2718,220.06,220.03,2.2721]
[1734370408460,8.3857446,220.05,220.03,2.2721]
[1734370409260,2.272,220.04,220.01,2.2723]
[1734370409456,8.3857446,220.02,220.01,2.2723]
[1734370409657,8.3857446,220.02,219.98,2.4]
[1734370409856,8.3857446,220.02,220.0,2.2724]
[1734370410154,2.2721,220.03,220.0,2.2724]
[1734370410359,8.3857446,220.02,220.0,2.2724]
[1734370410661,8.3857446,220.02,220.01,2.2723]
[1734370412158,8.3857446,220.02,220.01,0.93084284]
[1734370413157,255.2764597,220.03,220.0,2.2724]
[1734370413356,263.6622043,220.03,220.0,2.2724]
[1734370414559,253.0042597,220.03,220.02,2.2722]
[1734370414763,253.28549766,220.03,219.98,8.3857446]
[1734370415254,253.28549766,220.03,220.02,2.2722]
[1734370415957,253.28549766,220.04,220.03,2.2721]
[1734370416158,253.28549766,220.04,220.03,0.93528039]
[1734370417162,8.3857446,220.05,220.04,2.272]
[1734370417858,8.3857446,220.05,219.99,2.2725]
[1734370418059,8.3857446,220.03,219.96,8.3857446]
[1734370418261,8.3857446,220.03,219.98,2.4]
[1734370418456,8.3857446,220.03,220.0,2.2724]
[1734370418953,8.3857446,220.03,220.01,2.2723]
[1734370419157,10.6577446,220.05,219.98,2.4]
[1734370419362,2.272,220.05,219.99,8.3857446]
[1734370419559,8.3857446,220.05,219.99,8.3857446]
[1734370419967,253.28549766,220.06,219.99,8.3857446]
[1734370420159,261.67124226,220.06,219.99,8.3857446]
[1734370420354,261.67124226,220.06,220.0,2.4]
[1734370420559,8.3857446,220.04,220.0,2.4]
[1734370421361,8.3857446,220.06,220.04,2.272]
[1734370422264,18.66236659,220.06,220.03,2.2721]
[1734370422767,20.93426659,220.06,220.01,2.4]
[1734370422962,8.3857446,220.06,220.02,2.2722]
[1734370423163,8.3857446,220.04,220.0,7.73340629]
[1734370423465,8.3857446,220.04,220.01,2.2723]
[1734370423658,2.2724,220.01,219.98,2.4]
[1734370423856,8.3857446,220.0,219.98,2.2726]
[1734370424061,8.3857446,220.0,219.94,2.4]
[1734370424263,8.3857446,219.98,219.92,8.3857446]
[1734370424664,8.3857446,219.98,219.94,2.273]
[1734370424863,2.2728,219.97,219.94,2.273]
[1734370425069,8.3857446,219.96,219.91,2.4]
[1734370425270,8.3857446,219.96,219.9,8.3857446]
[1734370425471,8.3857446,219.96,219.9,10.7857446]
[1734370425666,8.3857446,219.94,219.84,1.4693]
[1734370425865,8.3857446,219.94,219.91,2.2733]
[1734370426167,10.6587446,219.95,219.91,2.2733]
[1734370428761,10.6587446,219.95,219.92,2.2733]
[1734370428762,8.3857446,219.95,219.92,2.2733]
[1734370429769,8.3857446,219.95,219.9,2.2734]
[1734370429770,10.6587446,219.95,219.9,2.2734]
[1734370429967,8.3857446,219.95,219.88,10.7857446]
[1734370430563,10.03933464,219.99,219.86,8.3857446]
[1734370430564,8.3857446,219.93,219.86,8.3857446]
[1734370430764,2.4,219.98,219.84,8.3857446]
[1734370430765,8.3857446,219.91,219.84,8.3857446]
[1734370430966,8.3857446,219.91,219.88,2.2736]
[1734370431173,8.3857446,219.89,219.77,3.35193904]
[1734370431367,8.3857446,219.89,219.76,3.0969]
[1734370431368,4.5665,219.92,219.82,8.3857446]
[1734370431671,4.5665,219.92,219.84,13.83046487]
[1734370431672,8.3857446,219.9,219.84,13.83046487]
[1734370431867,2.4,219.93,219.88,8.3857446]
[1734370432072,38.06925225,220.13,219.9,8.3857446]
[1734370432073,8.3857446,219.96,219.9,8.3857446]
[1734370432270,8.3857446,219.96,219.92,2.2732]
[1734370433367,8.3857446,219.96,219.91,2.2734]
[1734370433673,8.3857446,219.94,219.88,10.7857446]
[1734370433875,10.6588446,219.94,219.88,2.4]
[1734370434073,10.6588446,219.94,219.9,2.2735]
[1734370434273,8.3857446,219.94,219.9,2.2735]
[1734370434468,2.273,219.95,219.9,2.2735]
[1734370434675,8.3857446,219.95,219.9,2.2735]
[1734370435479,2.2731,219.94,219.9,2.2735]
[1734370438487,2.2732,219.93,219.9,2.2735]
[1734370439489,8.3857446,219.95,219.85,2.4]
[1734370439788,2.2733,219.92,219.87,8.3857446]
[1734370440286,8.3857446,219.95,219.89,8.3857446]
[1734370440483,6.9511,219.99,219.85,2.4]
[1734370440484,8.3857446,219.93,219.85,2.4]
[1734370440684,8.3857446,219.93,219.88,8.3857446]
[1734370440880,2.2731,219.94,219.9,2.2734]
[1734370442189,2.2731,219.94,219.91,2.2733]
[1734370442490,12.9368446,219.99,219.92,8.3857446]
[1734370443484,12.9368446,219.99,219.94,2.273]
[1734370443686,8.3857446,219.97,219.9,10.7857446]
[1734370443889,8.3857446,219.97,219.9,8.3857446]
[1734370444090,10.6587446,219.95,219.91,2.2733]
[1734370444289,8.3857446,219.97,219.9,8.3857446]
[1734370444490,12.9368446,219.99,219.92,8.3857446]
[1734370444683,8.3857446,219.97,219.87,2.4]
[1734370444883,8.3857446,219.97,219.91,8.3857446]
[1734370445496,12.9368446,219.99,219.94,2.273]
[1734370447190,12.9368446,219.99,219.92,8.3857446]
[1734370447592,2.2727,219.98,219.94,2.2731]
[1734370447992,2.2727,219.98,219.92,8.3857446]
[1734370448189,12.9368446,219.99,219.92,8.3857446]
[1734370448388,12.9368446,219.99,219.9,2.4]
[1734370448389,2.2726,219.99,219.94,8.3857446]
[1734370448596,253.28549766,220.01,219.96,8.3857446]
[1734370448897,253.28549766,220.01,219.97,2.2727]
[1734370449095,253.28549766,220.01,219.96,8.3857446]
[1734370449296,253.28549766,220.01,219.98,8.3857446]
[1734370449491,38.06925225,220.04,219.98,8.3857446]
[1734370449692,38.06925225,220.04,219.96,2.4]
[1734370449693,38.06925225,220.04,220.02,2.2722]
[1734370449896,38.06925225,220.04,220.0,8.3857446]
[1734370450298,253.28549766,220.05,220.0,8.3857446]
[1734370450498,8.3857446,220.06,220.0,8.3857446]
[1734370450688,253.28549766,220.08,220.0,8.3857446]
[1734370450894,253.28549766,220.08,219.98,2.4]
[1734370450895,261.67124226,220.08,220.05,2.2718]
[1734370451391,263.94294226,220.08,219.99,2.4]
[1734370451597,8.3857446,220.06,219.99,10.7857446]
[1734370452295,10.6575446,220.06,220.01,2.2723]
[1734370452493,8.3857446,220.06,220.01,2.2723]
[1734370452698,8.3857446,220.04,219.99,8.3857446]
[1734370453198,2.2721,220.03,219.99,2.2725]
[1734370453399,8.3857446,220.04,219.97,8.3857446]
[1734370453900,2.2722,220.02,219.99,2.2725]
[1734370454292,2.2722,220.02,219.97,8.3857446]
[1734370455402,2.2722,220.02,219.98,2.2726]
[1734370455897,2.2722,220.02,219.99,2.2725]
[1734370456101,2.2719,220.05,219.99,8.3857446]
[1734370456401,8.3857446,220.06,219.99,8.3857446]
[1734370456598,8.3857446,220.06,220.03,2.2721]
[1734370457901,2.2717,220.07,220.01,8.3857446]
[1734370458200,258.72389766,220.09,220.03,8.3857446]
[1734370458495,253.28549766,220.09,220.05,8.3857446]
[1734370458698,8.3857446,220.12,220.08,2.2716]
[1734370458900,8.3857446,220.1,220.03,8.3857446]
[1734370459101,8.3857446,220.08,220.02,2.4]
[1734370459402,8.3857446,220.08,220.03,2.272]
[1734370460000,10.6573446,220.08,220.04,2.2719]
[1734370460200,8.3857446,220.08,220.04,2.2719]
[1734370460903,253.28549766,220.11,220.04,2.2719]
[1734370461202,8.3857446,220.08,220.04,2.2719]
[1734370462001,8.3857446,220.06,219.95,3.0717]
[1734370462200,8.3857446,220.04,219.96,10.7857446]
[1734370462412,2.2722,220.03,219.99,2.2724]
[1734370462601,8.3857446,220.04,219.96,10.7857446]
[1734370462802,8.3857446,220.02,219.96,8.3857446]
[1734370462996,8.3857446,220.02,219.96,10.7857446]
[1734370463202,10.6579446,220.02,219.98,2.2725]
[1734370463400,8.3857446,220.0,219.93,8.3857446]
[1734370463604,2.2727,219.97,219.93,2.273]
[1734370463808,8.3857446,219.96,219.91,5.32878394]
[1734370464106,8.3857446,219.96,219.89,10.7857446]
[1734370464312,9.88514893,220.0,219.93,8.3857446]
[1734370464504,1.589,220.03,219.93,8.3857446]
[1734370464505,263.17064659,219.99,219.93,8.3857446]
[1734370464802,8.3857446,219.97,219.91,8.3857446]
[1734370465009,8.3857446,219.97,219.9,5.43381228]
[1734370465199,8.3857446,219.97,219.9,13.81955688]
[1734370466507,2.2728,219.96,219.92,2.2732]
[1734370466805,8.3857446,219.97,219.92,8.3857446]
[1734370467401,8.3857446,219.97,219.94,2.2729]
[1734370468111,8.3857446,219.97,219.9,5.43381228]
[1734370468309,8.3857446,219.95,219.89,8.3857446]
[1734370469217,10.6587446,219.95,219.9,2.2734]
[1734370469405,10.6587446,219.95,219.87,2.4]
[1734370469406,8.3857446,219.97,219.91,8.3857446]
[1734370470408,8.3857446,219.97,219.93,2.2731]
[1734370470409,10.6585446,219.97,219.93,2.2731]
[1734370470605,8.3857446,219.97,219.91,8.3857446]
[1734370471010,2.4,220.0,219.91,8.3857446]
[1734370471213,2.4,220.0,219.93,8.3857446]
[1734370471409,8.3857446,220.01,219.95,8.3857446]
[1734370472315,2.2724,220.0,219.95,10.6586446]
[1734370473314,2.2724,220.0,219.96,2.2728]
[1734370474013,2.2724,220.0,219.95,8.3857446]
[1734370474519,2.2723,220.02,219.98,2.2725]
[1734370474819,8.3857446,220.02,219.95,8.3857446]
[1734370475816,5.5106,220.05,219.95,8.3857446]
[1734370476019,8.3857446,220.03,219.95,8.3857446]
[1734370477117,8.3857446,219.99,219.89,5.34020025]
[1734370477320,8.3857446,219.99,219.92,8.3857446]
[1734370478522,2.2727,219.97,219.93,2.2731]
[1734370479125,10.6583446,219.99,219.95,2.2729]
[1734370479321,2.2726,219.99,219.95,2.2729]
[1734370479623,255.68549766,220.0,219.94,8.3857446]
[1734370479624,2.4,220.0,219.94,8.3857446]
[1734370479820,2.4,220.0,219.89,7.74020025]
[1734370479821,253.28549766,220.01,219.96,8.3857446]
[1734370480318,253.28549766,220.01,219.99,2.2724]
[1734370480522,253.28549766,220.01,219.98,8.3857446]
[1734370480822,267.05384226,220.05,220.0,2.2724]
[1734370481225,253.28549766,220.05,220.01,8.3857446]
[1734370481526,2.272,220.04,220.0,2.2724]
[1734370481721,261.67124226,220.07,220.0,2.2724]
[1734370481917,8.3857446,220.03,219.96,8.3857446]
[1734370482115,2.2723,220.01,219.97,2.2726]
[1734370484018,10.6580446,220.01,219.97,2.2726]
[1734370484818,253.28549766,220.03,219.93,2.4]
[1734370485017,8.3857446,219.99,219.92,8.3857446]
[1734370485624,2.2728,219.96,219.92,10.6589446]
[1734370485821,2.2728,219.96,219.92,2.2732]
[1734370486522,10.6587446,219.95,219.89,5.34020025]
[1734370487229,10.6587446,219.95,219.91,2.2733]
[1734370487721,2.273,219.94,219.91,2.2733]
[1734370487918,8.3857446,219.95,219.9,2.2734]
[1734370488621,8.3857446,219.95,219.88,8.3857446]
[1734370488622,8.3857446,219.93,219.88,8.3857446]
[1734370488835,2.2732,219.92,219.88,2.2736]
[1734370489122,3.0325,219.97,219.88,8.3857446]
[1734370489327,8.3857446,219.94,219.88,8.3857446]
[1734370489831,10.6588446,219.94,219.9,2.2734]
[1734370490126,253.28549766,219.99,219.92,8.3857446]
[1734370490324,2.2727,219.98,219.94,2.2729]
[1734370490524,10.6584446,219.98,219.94,2.2729]
[1734370490728,8.3857446,219.98,219.9,8.3857446]
[1734370490926,2.2728,219.96,219.93,2.2731]
[1734370491127,8.3857446,219.98,219.92,8.3857446]
[1734370491428,8.3857446,220.0,219.92,8.3857446]
[1734370491627,2.2725,219.99,219.96,2.2728]
[1734370492328,8.3857446,219.98,219.9,8.3857446]
[1734370492826,8.3857446,219.98,219.92,8.3857446]
[1734370493019,2.2726,219.99,219.92,8.3857446]
[1734370493224,8.3857446,220.0,219.94,8.3857446]
[1734370493526,10.6581446,220.0,219.97,2.2727]
[1734370493826,8.3857446,220.0,219.89,2.4]
[1734370494023,8.3857446,220.0,219.93,8.3857446]
[1734370495329,2.2726,219.99,219.96,2.2728]
[1734370495527,8.3857446,220.0,219.89,2.4]
[1734370495734,261.67124226,220.02,219.96,8.3857446]
[1734370496031,10.6582446,220.0,219.96,2.2728]
[1734370498934,8.3857446,219.98,219.91,8.3857446]
[1734370499530,2.2727,219.97,219.94,2.273]
[1734370499828,253.28549766,219.97,219.91,8.3857446]
[1734370500025,253.28549766,219.97,219.93,8.3857446]
[1734370500233,253.28549766,219.97,219.96,2.2728]
[1734370500636,253.28549766,219.97,219.93,8.3857446]
[1734370500829,253.28549766,219.97,219.95,2.2729]
[1734370501232,253.28549766,219.98,219.95,2.2729]
[1734370504029,253.28549766,219.98,219.97,2.2727]
[1734370504438,254.6901471,220.02,219.97,2.2727]